{"text_format":"1","workbook":"xlsx","n_sheets":3,"sheets":["Feuil1","Feuil2","Feuil3"],"not_rendered":{"charts":0,"images":0,"macros":0,"external_links":0,"defined_names":0,"comments":0,"pivot_tables":0},"unopened":[],"bounds":{"document_bytes":16777216,"sheet_cells":100000,"rows_first":2000,"rows_last":500,"rows_between":2000,"halvings":0,"cell_chars":16384,"cell_head_chars":4096},"cells_cut":0,"cells_raw":0,"read":"whole","date_system":"1900"}

{"sheet":"Feuil1","index":0,"n_rows":18,"n_cols":5,"rows_kept":18,"cut":false,"hidden":false,"merged":[]}
["par formule",null,null,null,"par formatage conditionnel avec formule"]
["(la valeur numérique est détruite)",null,null,null,"(la valeur numérique est conservée)"]
["Paul",10,{"$f":"RANK($B3,$B$3:$B$18)&IF(RANK(B3,$B$3:$B$18)=1,\" ier\",\" ième\")","v":"9 ième"},null,{"$f":"RANK(B3,$B$3:$B$16)","v":9}]
["Renè",14,{"$f":"RANK($B4,$B$3:$B$18)&IF(RANK(B4,$B$3:$B$18)=1,\" ier\",\" ième\")","v":"5 ième"},null,{"$f":"RANK(B4,$B$3:$B$16)","v":5}]
["André",8,"11 ième",null,11]
["Ewan",17,"3 ième",null,3]
["Marcel",12,"7 ième",null,7]
["Patrick",11,"8 ième",null,8]
["Eric",9,"10 ième",null,10]
["Corinne",15,"4 ième",null,4]
["Chrystel",19,"2 ième",null,2]
["Monique",20,"1 ier",null,1]
["Léa",4,"14 ième",null,13]
["Lucas",3,"15 ième",null,14]
["André",13,"6 ième",null,6]
["Anne-Marie",6,"13 ième",null,12]
["Madeleine",8,"11 ième",null,11]
["Pierrette",3,"15 ième",null,14]

{"sheet":"Feuil2","index":1,"n_rows":0,"n_cols":0,"rows_kept":0,"cut":false,"hidden":false,"merged":[]}

{"sheet":"Feuil3","index":2,"n_rows":0,"n_cols":0,"rows_kept":0,"cut":false,"hidden":false,"merged":[]}